[Event "Early-Titled-Tuesday-Blitz-May-28-2024"]
[Site "Chess.com"]
[Date "2024.05.28"]
[Round "2"]
[White "vishwa_vijeta"]
[Black "Vaathi_Coming"]
[Result "0-1"]
[WhiteElo "2597"]
[BlackElo "2901"]
[TimeControl "180+1"]
[EndTime "8:18:12 PDT"]
[Termination "Vaathi_Coming won by resignation"]

1. e4 {[%clk 0:02:55.2]} 1... Nf6 {[%clk 0:02:56.3]} 2. e5 {[%clk 0:02:54.6]}
2... Nd5 {[%clk 0:02:56.6]} 3. d4 {[%clk 0:02:53.7]} 3... d6 {[%clk 0:02:56.9]}
4. Nf3 {[%clk 0:02:53.2]} 4... dxe5 {[%clk 0:02:56.5]} 5. Nxe5 {[%clk
0:02:53.3]} 5... Nd7 {[%clk 0:02:56.6]} 6. Nxd7 {[%clk 0:02:50.9]} 6... Bxd7
{[%clk 0:02:55.1]} 7. c3 {[%clk 0:02:50.6]} 7... e6 {[%clk 0:02:50.2]} 8. Bd3
{[%clk 0:02:48.2]} 8... c5 {[%clk 0:02:49.3]} 9. dxc5 {[%clk 0:02:45.1]} 9...
Bxc5 {[%clk 0:02:50.2]} 10. Nd2 {[%clk 0:02:45.4]} 10... Nf4 {[%clk 0:02:47.3]}
11. Be4 {[%clk 0:02:43]} 11... Bc6 {[%clk 0:02:16.5]} 12. O-O {[%clk 0:02:35.6]}
12... Qc7 {[%clk 0:01:48.2]} 13. Qf3 {[%clk 0:02:26.7]} 13... Ng6 {[%clk
0:01:21.6]} 14. Bxc6+ {[%clk 0:02:24.5]} 14... bxc6 {[%clk 0:01:22.5]} 15. Ne4
{[%clk 0:02:24.4]} 15... Be7 {[%clk 0:01:22.9]} 16. Rd1 {[%clk 0:02:17.8]} 16...
O-O {[%clk 0:01:21.9]} 17. Be3 {[%clk 0:02:15.9]} 17... Rad8 {[%clk 0:01:22.2]}
18. Rxd8 {[%clk 0:02:14.2]} 18... Rxd8 {[%clk 0:01:23.1]} 19. Rd1 {[%clk
0:02:14.8]} 19... Rd5 {[%clk 0:01:22.8]} 20. b3 {[%clk 0:01:51.5]} 20... Qd7
{[%clk 0:01:19.5]} 21. Rxd5 {[%clk 0:01:43.3]} 21... cxd5 {[%clk 0:01:19.1]} 22.
Nd2 {[%clk 0:01:40.4]} 22... Bf6 {[%clk 0:01:11.8]} 23. c4 {[%clk 0:01:38.5]}
23... d4 {[%clk 0:00:59.5]} 24. Qa8+ {[%clk 0:01:33.3]} 24... Bd8 {[%clk
0:00:55]} 25. Bg5 {[%clk 0:00:55]} 25... f6 {[%clk 0:00:54.7]} 26. Bxf6 {[%clk
0:00:54.5]} 26... gxf6 {[%clk 0:00:54.4]} 27. c5 {[%clk 0:00:54.3]} 27... Ne5
{[%clk 0:00:44.1]} 28. Ne4 {[%clk 0:00:50.6]} 28... Kg7 {[%clk 0:00:43.5]} 29.
Nd6 {[%clk 0:00:48.3]} 29... d3 {[%clk 0:00:37]} 30. Kf1 {[%clk 0:00:43.8]}
30... Be7 {[%clk 0:00:33]} 31. f4 {[%clk 0:00:31.2]} 31... Nc6 {[%clk
0:00:28.3]} 32. Ne8+ {[%clk 0:00:23.7]} 32... Kf7 {[%clk 0:00:27.6]} 0-1

[Event "Early-Titled-Tuesday-Blitz-May-28-2024"]
[Site "Chess.com"]
[Date "2024.05.28"]
[Round "2"]
[White "Masterbeaterr"]
[Black "SaraBlackPanther"]
[Result "0-1"]
[WhiteElo "2451"]
[BlackElo "2747"]
[TimeControl "180+1"]
[EndTime "8:18:12 PDT"]
[Termination "SaraBlackPanther won by resignation"]

1. d4 {[%clk 0:03:00.9]} 1... Nf6 {[%clk 0:02:58.8]} 2. c4 {[%clk 0:03:01]} 2...
g6 {[%clk 0:02:58.9]} 3. Nc3 {[%clk 0:02:59.6]} 3... Bg7 {[%clk 0:02:59.6]} 4.
e4 {[%clk 0:02:58.9]} 4... O-O {[%clk 0:03:00.5]} 5. Nf3 {[%clk 0:02:59.1]} 5...
d6 {[%clk 0:03:00.9]} 6. Be2 {[%clk 0:02:59.6]} 6... e5 {[%clk 0:03:00.5]} 7.
O-O {[%clk 0:03:00.1]} 7... h6 {[%clk 0:03:00.7]} 8. h3 {[%clk 0:02:48.5]} 8...
Nc6 {[%clk 0:02:54.8]} 9. d5 {[%clk 0:02:48.6]} 9... Ne7 {[%clk 0:02:50.6]} 10.
Ne1 {[%clk 0:02:44.9]} 10... Nd7 {[%clk 0:02:45.7]} 11. Nd3 {[%clk 0:02:45]}
11... f5 {[%clk 0:02:45.4]} 12. f3 {[%clk 0:02:45.2]} 12... f4 {[%clk
0:02:40.9]} 13. b4 {[%clk 0:02:43]} 13... g5 {[%clk 0:02:40.4]} 14. c5 {[%clk
0:02:38.2]} 14... h5 {[%clk 0:02:37.6]} 15. Bd2 {[%clk 0:02:21]} 15... Ng6
{[%clk 0:02:35.7]} 16. a4 {[%clk 0:02:17.3]} 16... Nf6 {[%clk 0:02:34.3]} 17.
Nf2 {[%clk 0:02:16]} 17... Rf7 {[%clk 0:02:25.2]} 18. a5 {[%clk 0:02:15.2]}
18... Bf8 {[%clk 0:02:20.2]} 19. c6 {[%clk 0:02:11.1]} 19... Rg7 {[%clk
0:02:08.4]} 20. cxb7 {[%clk 0:02:04.8]} 20... Bxb7 {[%clk 0:02:09.3]} 21. Rc1
{[%clk 0:02:02]} 21... Nh4 {[%clk 0:02:06.5]} 22. Nb5 {[%clk 0:01:49.3]} 22...
a6 {[%clk 0:02:04]} 23. Na3 {[%clk 0:01:48.6]} 23... Bc8 {[%clk 0:02:04.4]} 24.
Rc3 {[%clk 0:01:44.4]} 24... g4 {[%clk 0:01:54]} 25. fxg4 {[%clk 0:01:43.5]}
25... hxg4 {[%clk 0:01:54.9]} 26. Nxg4 {[%clk 0:01:41.8]} 26... Nxe4 {[%clk
0:01:42.4]} 27. Rc4 {[%clk 0:01:27.5]} 27... Ng3 {[%clk 0:01:38.7]} 28. Rf2
{[%clk 0:01:23.8]} 28... Qg5 {[%clk 0:01:28.6]} 29. Bxf4 {[%clk 0:00:58.2]}
29... exf4 {[%clk 0:01:25.4]} 30. Rcxf4 {[%clk 0:00:59.1]} 30... Be7 {[%clk
0:01:06.8]} 31. Bd3 {[%clk 0:00:47.5]} 31... Bd7 {[%clk 0:00:58.3]} 32. Nf6+
{[%clk 0:00:47.2]} 32... Bxf6 {[%clk 0:00:57.4]} 33. Rxf6 {[%clk 0:00:48.1]}
33... Ngf5 {[%clk 0:00:53.7]} 34. Bxf5 {[%clk 0:00:40.3]} 34... Bxf5 {[%clk
0:00:53.2]} 35. R6xf5 {[%clk 0:00:30.5]} 35... Nxf5 {[%clk 0:00:52.8]} 36. Qe2
{[%clk 0:00:31.4]} 36... Rf8 {[%clk 0:00:48.7]} 37. Nc4 {[%clk 0:00:28.2]} 37...
Rgf7 {[%clk 0:00:45.2]} 38. Qe6 {[%clk 0:00:24.9]} 38... Ng7 {[%clk 0:00:41]}
0-1

[Event "Early-Titled-Tuesday-Blitz-May-28-2024"]
[Site "Chess.com"]
[Date "2024.05.28"]
[Round "2"]
[White "Aswathchess"]
[Black "Naruto75_3"]
[Result "1-0"]
[WhiteElo "2719"]
[BlackElo "2400"]
[TimeControl "180+1"]
[EndTime "8:18:13 PDT"]
[Termination "Aswathchess won by checkmate"]

1. e4 {[%clk 0:03:00.9]} 1... c5 {[%clk 0:02:59]} 2. Nc3 {[%clk 0:02:59.1]} 2...
d6 {[%clk 0:02:58.1]} 3. d4 {[%clk 0:02:57.1]} 3... cxd4 {[%clk 0:02:57.3]} 4.
Qxd4 {[%clk 0:02:57.8]} 4... Nc6 {[%clk 0:02:57.6]} 5. Qd2 {[%clk 0:02:58.5]}
5... g6 {[%clk 0:02:56.5]} 6. b3 {[%clk 0:02:59.1]} 6... Bg7 {[%clk 0:02:56.3]}
7. Bb2 {[%clk 0:02:58.7]} 7... Nf6 {[%clk 0:02:56.3]} 8. O-O-O {[%clk
0:02:59.4]} 8... O-O {[%clk 0:02:56.2]} 9. f3 {[%clk 0:02:59.5]} 9... Qa5 {[%clk
0:02:55.5]} 10. Kb1 {[%clk 0:02:52.4]} 10... Be6 {[%clk 0:02:54.5]} 11. h4
{[%clk 0:02:50.4]} 11... Rac8 {[%clk 0:02:51.4]} 12. Nge2 {[%clk 0:02:47.4]}
12... b5 {[%clk 0:02:44.7]} 13. h5 {[%clk 0:02:42.8]} 13... b4 {[%clk
0:02:38.6]} 14. Nd5 {[%clk 0:02:33.1]} 14... Bxd5 {[%clk 0:02:27.2]} 15. exd5
{[%clk 0:02:32.9]} 15... Ne5 {[%clk 0:02:27.4]} 16. hxg6 {[%clk 0:02:25.7]}
16... hxg6 {[%clk 0:02:17.6]} 17. Nf4 {[%clk 0:02:06]} 17... Rc5 {[%clk
0:02:13.7]} 18. Be2 {[%clk 0:01:05.9]} 18... Rfc8 {[%clk 0:02:06.4]} 19. Rc1
{[%clk 0:01:06.2]} 19... Nxd5 {[%clk 0:02:04.1]} 20. Nxd5 {[%clk 0:01:04.3]}
20... Rxd5 {[%clk 0:02:05]} 21. Qf4 {[%clk 0:01:02.5]} 21... Qb6 {[%clk
0:01:22.5]} 22. Qh4 {[%clk 0:00:46.6]} 22... Qe3 {[%clk 0:01:14.7]} 23. Ba6
{[%clk 0:00:38.1]} 23... Rc6 {[%clk 0:01:11.5]} 24. Bb7 {[%clk 0:00:37.2]} 24...
Rdc5 {[%clk 0:01:04.3]} 25. Bxc6 {[%clk 0:00:35.7]} 25... Rxc6 {[%clk
0:01:03.4]} 26. f4 {[%clk 0:00:35.8]} 26... f5 {[%clk 0:00:20]} 27. Qxe7 {[%clk
0:00:29.6]} 27... Qxf4 {[%clk 0:00:16.2]} 28. Qe8+ {[%clk 0:00:27.1]} 28... Bf8
{[%clk 0:00:16.3]} 29. Rh8+ {[%clk 0:00:27.3]} 29... Kxh8 {[%clk 0:00:16]} 30.
Qxf8+ {[%clk 0:00:27.5]} 30... Kh7 {[%clk 0:00:16.4]} 31. Rh1+ {[%clk
0:00:28.4]} 31... Qh6 {[%clk 0:00:15.9]} 32. Rxh6# {[%clk 0:00:28.3]} 1-0

[Event "Early-Titled-Tuesday-Blitz-May-28-2024"]
[Site "Chess.com"]
[Date "2024.05.28"]
[Round "2"]
[White "chessamical"]
[Black "juancruzarias"]
[Result "0-1"]
[WhiteElo "2291"]
[BlackElo "2668"]
[TimeControl "180+1"]
[EndTime "8:18:16 PDT"]
[Termination "juancruzarias won on time"]

1. Nf3 {[%clk 0:03:00.9]} 1... d5 {[%clk 0:02:55]} 2. c4 {[%clk 0:02:59.8]} 2...
e6 {[%clk 0:02:54.8]} 3. e3 {[%clk 0:02:57.4]} 3... Nf6 {[%clk 0:02:55.1]} 4. b3
{[%clk 0:02:45.9]} 4... b6 {[%clk 0:02:53.3]} 5. Bb2 {[%clk 0:02:45.7]} 5... Bb7
{[%clk 0:02:53.7]} 6. Be2 {[%clk 0:02:40]} 6... Nbd7 {[%clk 0:02:51.4]} 7. Qc2
{[%clk 0:02:39.3]} 7... c5 {[%clk 0:02:50]} 8. cxd5 {[%clk 0:02:23.9]} 8... exd5
{[%clk 0:02:48.6]} 9. d4 {[%clk 0:02:22.6]} 9... Rc8 {[%clk 0:02:46.3]} 10. dxc5
{[%clk 0:02:19.6]} 10... Bxc5 {[%clk 0:02:38.5]} 11. Qf5 {[%clk 0:02:13]} 11...
Bb4+ {[%clk 0:02:34.2]} 12. Nbd2 {[%clk 0:02:10.9]} 12... Ne4 {[%clk 0:02:02.5]}
13. a3 {[%clk 0:02:04.5]} 13... Bc3 {[%clk 0:01:51.8]} 14. Bxc3 {[%clk
0:01:58.3]} 14... Nxc3 {[%clk 0:01:52.7]} 15. Bd3 {[%clk 0:01:54.2]} 15... g6
{[%clk 0:01:46.6]} 16. Qf4 {[%clk 0:01:43.3]} 16... O-O {[%clk 0:01:32]} 17. O-O
{[%clk 0:01:25.6]} 17... Qe7 {[%clk 0:01:30.5]} 18. Rfc1 {[%clk 0:01:07.9]}
18... Nf6 {[%clk 0:01:17.2]} 19. Qb4 {[%clk 0:00:39.4]} 19... Qxb4 {[%clk
0:01:14.6]} 20. axb4 {[%clk 0:00:39.7]} 20... a6 {[%clk 0:01:14.3]} 21. Kf1
{[%clk 0:00:32.3]} 21... b5 {[%clk 0:01:11.9]} 22. Nd4 {[%clk 0:00:29.8]} 22...
Rc7 {[%clk 0:01:10.8]} 23. Rc2 {[%clk 0:00:26]} 23... Rfc8 {[%clk 0:01:08.5]}
24. Rac1 {[%clk 0:00:25.6]} 24... Ne8 {[%clk 0:01:07]} 25. Ne2 {[%clk
0:00:20.6]} 25... Nxe2 {[%clk 0:01:06.3]} 26. Rxc7 {[%clk 0:00:20.2]} 26... Rxc7
{[%clk 0:01:06.2]} 27. Rxc7 {[%clk 0:00:20.3]} 27... Nxc7 {[%clk 0:01:06.5]} 28.
Kxe2 {[%clk 0:00:20.8]} 28... Kf8 {[%clk 0:01:06.5]} 29. f3 {[%clk 0:00:20.3]}
29... Ke7 {[%clk 0:01:06.8]} 30. Nb1 {[%clk 0:00:19.2]} 30... Kd6 {[%clk
0:01:06.8]} 31. Bc2 {[%clk 0:00:19.2]} 31... Ne6 {[%clk 0:01:06.7]} 32. Kd2
{[%clk 0:00:19.3]} 32... d4 {[%clk 0:01:06.4]} 33. e4 {[%clk 0:00:19]} 33... Nd8
{[%clk 0:01:04]} 34. Bd3 {[%clk 0:00:17.8]} 34... Nc6 {[%clk 0:01:04.2]} 35. Na3
{[%clk 0:00:15.8]} 35... Nxb4 {[%clk 0:01:04.6]} 36. Nc2 {[%clk 0:00:16.1]}
36... Nxc2 {[%clk 0:01:04.1]} 37. Kxc2 {[%clk 0:00:15.2]} 37... Kc5 {[%clk
0:01:03.2]} 38. Kb2 {[%clk 0:00:14.6]} 38... a5 {[%clk 0:01:02.6]} 39. Kc2
{[%clk 0:00:14.9]} 39... Bc6 {[%clk 0:01:03]} 40. Kb2 {[%clk 0:00:14.8]} 40...
Kb4 {[%clk 0:01:03.2]} 41. Be2 {[%clk 0:00:13.3]} 41... a4 {[%clk 0:01:03.2]}
42. bxa4 {[%clk 0:00:11.6]} 42... bxa4 {[%clk 0:01:04.1]} 43. Bd3 {[%clk
0:00:11.7]} 43... Bb5 {[%clk 0:01:04.3]} 44. Bb1 {[%clk 0:00:07.8]} 44... a3+
{[%clk 0:01:04.2]} 45. Kc2 {[%clk 0:00:04.1]} 45... Bc4 {[%clk 0:01:04.2]} 0-1

[Event "Early-Titled-Tuesday-Blitz-May-28-2024"]
[Site "Chess.com"]
[Date "2024.05.28"]
[Round "2"]
[White "Squirlolz"]
[Black "SimplyDevina"]
[Result "1-0"]
[WhiteElo "2530"]
[BlackElo "2306"]
[TimeControl "180+1"]
[EndTime "8:18:19 PDT"]
[Termination "Squirlolz won on time"]

1. Nf3 {[%clk 0:03:00.9]} 1... d5 {[%clk 0:02:56]} 2. g3 {[%clk 0:02:58.6]} 2...
Nf6 {[%clk 0:02:55.7]} 3. Bg2 {[%clk 0:02:58.5]} 3... g6 {[%clk 0:02:52.6]} 4.
O-O {[%clk 0:02:59.4]} 4... Bg7 {[%clk 0:02:53]} 5. c4 {[%clk 0:02:53.8]} 5...
c6 {[%clk 0:02:51.2]} 6. d3 {[%clk 0:02:46.4]} 6... O-O {[%clk 0:02:50.5]} 7.
Nc3 {[%clk 0:02:46.7]} 7... Nbd7 {[%clk 0:02:49.6]} 8. Qc2 {[%clk 0:02:45.7]}
8... e5 {[%clk 0:02:48.1]} 9. e4 {[%clk 0:02:45.5]} 9... d4 {[%clk 0:02:44.5]}
10. Ne2 {[%clk 0:02:43.9]} 10... Ne8 {[%clk 0:02:35]} 11. b4 {[%clk 0:02:42.2]}
11... c5 {[%clk 0:02:30.9]} 12. Nd2 {[%clk 0:02:35.9]} 12... Rb8 {[%clk
0:01:55.5]} 13. f4 {[%clk 0:02:33.5]} 13... f5 {[%clk 0:01:55.1]} 14. bxc5
{[%clk 0:02:30.1]} 14... Nxc5 {[%clk 0:01:52.3]} 15. Ba3 {[%clk 0:02:29.7]}
15... b6 {[%clk 0:01:52]} 16. fxe5 {[%clk 0:02:26.2]} 16... Bxe5 {[%clk
0:01:51.6]} 17. Nf3 {[%clk 0:02:26.4]} 17... Qd6 {[%clk 0:01:36.3]} 18. exf5
{[%clk 0:02:05.1]} 18... Bxf5 {[%clk 0:01:27.7]} 19. Nxe5 {[%clk 0:02:05.4]}
19... Qxe5 {[%clk 0:01:25.9]} 20. Nf4 {[%clk 0:02:05.8]} 20... Nf6 {[%clk
0:01:00.3]} 21. Rae1 {[%clk 0:02:02.9]} 21... Qd6 {[%clk 0:00:56.6]} 22. Nd5
{[%clk 0:01:45.5]} 22... Nxd5 {[%clk 0:00:46.5]} 23. Bxd5+ {[%clk 0:01:46.4]}
23... Kg7 {[%clk 0:00:42.6]} 24. Bb2 {[%clk 0:01:46.7]} 24... Ne6 {[%clk
0:00:28.1]} 25. Rxf5 {[%clk 0:01:37.7]} 25... Rxf5 {[%clk 0:00:26.8]} 26. Rxe6
{[%clk 0:01:37]} 26... Qc5 {[%clk 0:00:23.3]} 27. Qe2 {[%clk 0:01:26.1]} 27...
Rbf8 {[%clk 0:00:19.4]} 28. Re7+ {[%clk 0:01:08.2]} 28... Kh8 {[%clk 0:00:19.4]}
29. Re4 {[%clk 0:00:41.8]} 29... Qb4 {[%clk 0:00:02.6]} 30. Bxd4+ {[%clk
0:00:38.7]} 30... R8f6 {[%clk 0:00:03.1]} 31. Re8+ {[%clk 0:00:28.1]} 31... Kg7
{[%clk 0:00:02.8]} 32. Qe7+ {[%clk 0:00:28.8]} 32... Kh6 {[%clk 0:00:02.5]} 33.
Qxb4 {[%clk 0:00:27]} 1-0

[Event "Early-Titled-Tuesday-Blitz-May-28-2024"]
[Site "Chess.com"]
[Date "2024.05.28"]
[Round "2"]
[White "Chesstrainer1"]
[Black "gpsji27"]
[Result "0-1"]
[WhiteElo "2502"]
[BlackElo "2313"]
[TimeControl "180+1"]
[EndTime "8:18:19 PDT"]
[Termination "gpsji27 won on time"]

1. e4 {[%clk 0:01:55.8]} 1... e5 {[%clk 0:02:59.8]} 2. Nf3 {[%clk 0:01:55.3]}
2... Nc6 {[%clk 0:03:00.3]} 3. d4 {[%clk 0:01:55]} 3... exd4 {[%clk 0:03:00.2]}
4. Nxd4 {[%clk 0:01:55.2]} 4... Bc5 {[%clk 0:02:59.4]} 5. Nb3 {[%clk 0:01:54.6]}
5... Bb6 {[%clk 0:02:56.3]} 6. Nc3 {[%clk 0:01:54.8]} 6... Nf6 {[%clk
0:02:55.1]} 7. Qe2 {[%clk 0:01:53.2]} 7... O-O {[%clk 0:02:54.3]} 8. Bg5 {[%clk
0:01:53]} 8... h6 {[%clk 0:02:53.1]} 9. Bh4 {[%clk 0:01:53.2]} 9... d6 {[%clk
0:02:51]} 10. O-O-O {[%clk 0:01:52.2]} 10... Be6 {[%clk 0:02:50.2]} 11. f3
{[%clk 0:01:37.2]} 11... a5 {[%clk 0:02:47.2]} 12. Nd2 {[%clk 0:01:29.1]} 12...
Nd4 {[%clk 0:02:26.9]} 13. Qd3 {[%clk 0:01:19.7]} 13... a4 {[%clk 0:02:25.1]}
14. Nc4 {[%clk 0:01:09.5]} 14... Bc5 {[%clk 0:02:17.5]} 15. a3 {[%clk
0:00:43.3]} 15... b5 {[%clk 0:02:07.3]} 16. Ne3 {[%clk 0:00:41.3]} 16... c6
{[%clk 0:01:34]} 17. Nf5 {[%clk 0:00:17.5]} 17... Bc4 {[%clk 0:01:22.1]} 18. Qd2
{[%clk 0:00:14.4]} 18... Nxf5 {[%clk 0:01:13.7]} 19. exf5 {[%clk 0:00:15.3]}
19... b4 {[%clk 0:01:09.2]} 20. Bxc4 {[%clk 0:00:13.3]} 20... bxc3 {[%clk
0:01:07.4]} 21. Qxc3 {[%clk 0:00:13.5]} 21... d5 {[%clk 0:01:05.9]} 22. Bxf6
{[%clk 0:00:06]} 22... Qxf6 {[%clk 0:01:04.8]} 23. Qxf6 {[%clk 0:00:05.4]} 23...
gxf6 {[%clk 0:01:05.7]} 24. Bd3 {[%clk 0:00:04.3]} 24... Rab8 {[%clk 0:01:04.3]}
25. c3 {[%clk 0:00:04.2]} 25... Rb3 {[%clk 0:01:03]} 26. Bc2 {[%clk 0:00:03.8]}
26... Rb6 {[%clk 0:00:56.3]} 27. Bxa4 {[%clk 0:00:03.9]} 27... Rfb8 {[%clk
0:00:55.9]} 28. b4 {[%clk 0:00:03.1]} 28... Ra6 {[%clk 0:00:51.6]} 29. Bb3
{[%clk 0:00:02.1]} 29... Rxa3 {[%clk 0:00:40.8]} 30. Kb2 {[%clk 0:00:02.4]}
30... Ra7 {[%clk 0:00:38.2]} 31. Ra1 {[%clk 0:00:02.4]} 31... Rab7 {[%clk
0:00:36.7]} 0-1

[Event "Early-Titled-Tuesday-Blitz-May-28-2024"]
[Site "Chess.com"]
[Date "2024.05.28"]
[Round "2"]
[White "luca_va99"]
[Black "banane_verte"]
[Result "0-1"]
[WhiteElo "2250"]
[BlackElo "2505"]
[TimeControl "180+1"]
[EndTime "8:18:19 PDT"]
[Termination "banane_verte won by resignation"]

1. e4 {[%clk 0:03:00.9]} 1... e6 {[%clk 0:02:58.9]} 2. Nf3 {[%clk 0:03:00.1]}
2... d5 {[%clk 0:02:58.8]} 3. e5 {[%clk 0:02:59.8]} 3... c5 {[%clk 0:02:59.1]}
4. b4 {[%clk 0:03:00.1]} 4... cxb4 {[%clk 0:02:59.6]} 5. a3 {[%clk 0:02:59.3]}
5... bxa3 {[%clk 0:03:00.2]} 6. d4 {[%clk 0:02:57.7]} 6... Nc6 {[%clk
0:02:59.6]} 7. c3 {[%clk 0:02:57.1]} 7... Bd7 {[%clk 0:02:57.2]} 8. Bxa3 {[%clk
0:02:56.7]} 8... Bxa3 {[%clk 0:02:55]} 9. Nxa3 {[%clk 0:02:57.6]} 9... a6 {[%clk
0:02:55.1]} 10. Bd3 {[%clk 0:02:57.9]} 10... Nge7 {[%clk 0:02:51.5]} 11. O-O
{[%clk 0:02:57.5]} 11... h6 {[%clk 0:02:43.8]} 12. Rb1 {[%clk 0:02:51.9]} 12...
Na5 {[%clk 0:02:39.6]} 13. Nd2 {[%clk 0:02:22.2]} 13... Rc8 {[%clk 0:02:37.4]}
14. c4 {[%clk 0:02:03.2]} 14... dxc4 {[%clk 0:02:23.7]} 15. Naxc4 {[%clk
0:02:04.1]} 15... Nxc4 {[%clk 0:02:23.4]} 16. Nxc4 {[%clk 0:02:03.7]} 16... O-O
{[%clk 0:02:23.4]} 17. Rxb7 {[%clk 0:01:45.7]} 17... Bb5 {[%clk 0:02:21.9]} 18.
Nd6 {[%clk 0:01:41.9]} 18... Bxd3 {[%clk 0:02:18]} 19. Qxd3 {[%clk 0:01:42.8]}
19... Rc6 {[%clk 0:02:13.4]} 20. Ra7 {[%clk 0:01:34]} 20... Nd5 {[%clk 0:02:12]}
21. h3 {[%clk 0:01:02.1]} 21... Qb6 {[%clk 0:02:03.5]} 22. Rd7 {[%clk
0:00:56.6]} 22... a5 {[%clk 0:01:59.3]} 23. Qf3 {[%clk 0:00:44.9]} 23... Rc7
{[%clk 0:01:55.7]} 24. Rxc7 {[%clk 0:00:40.4]} 24... Qxc7 {[%clk 0:01:56.6]} 25.
Qa3 {[%clk 0:00:36.9]} 25... Ra8 {[%clk 0:01:51.4]} 26. Rc1 {[%clk 0:00:35.2]}
26... Qb6 {[%clk 0:01:45.7]} 27. Qc5 {[%clk 0:00:30]} 27... Qxc5 {[%clk
0:01:44.8]} 28. dxc5 {[%clk 0:00:30.9]} 28... a4 {[%clk 0:01:41]} 29. c6 {[%clk
0:00:25.6]} 29... a3 {[%clk 0:01:41.4]} 30. Ra1 {[%clk 0:00:17.2]} 30... a2
{[%clk 0:01:39.9]} 31. Nb5 {[%clk 0:00:16.5]} 31... Rb8 {[%clk 0:01:36.9]} 32.
c7 {[%clk 0:00:15.9]} 32... Nxc7 {[%clk 0:01:36.2]} 33. Nc3 {[%clk 0:00:11.7]}
33... Nd5 {[%clk 0:01:27.6]} 34. Nxa2 {[%clk 0:00:04.7]} 34... Ra8 {[%clk
0:01:28]} 35. Kf1 {[%clk 0:00:02.1]} 35... Nb4 {[%clk 0:01:26.2]} 36. Nxb4
{[%clk 0:00:02.1]} 36... Rxa1+ {[%clk 0:01:26.8]} 37. Ke2 {[%clk 0:00:02.6]}
37... Ra5 {[%clk 0:01:25]} 38. Nd3 {[%clk 0:00:02.6]} 38... Kf8 {[%clk
0:01:23.7]} 39. Ke3 {[%clk 0:00:03.1]} 39... Ke7 {[%clk 0:01:24.2]} 40. f3
{[%clk 0:00:02.3]} 40... Kd7 {[%clk 0:01:24.6]} 41. g4 {[%clk 0:00:02.5]} 41...
Kc6 {[%clk 0:01:25.1]} 42. Ke4 {[%clk 0:00:02.1]} 42... Ra4+ {[%clk 0:01:25]}
43. Ke3 {[%clk 0:00:02.3]} 43... Kd5 {[%clk 0:01:24.7]} 44. f4 {[%clk
0:00:02.9]} 44... Ra3 {[%clk 0:01:23.1]} 45. Ke2 {[%clk 0:00:01.7]} 45... Kd4
{[%clk 0:01:21.7]} 46. Nf2 {[%clk 0:00:01.7]} 46... Ra2+ {[%clk 0:01:21.2]} 47.
Kf1 {[%clk 0:00:01.7]} 47... Ke3 {[%clk 0:01:20.7]} 48. Kg2 {[%clk 0:00:02.6]}
48... Rxf2+ {[%clk 0:01:20.3]} 49. Kg3 {[%clk 0:00:03.5]} 49... Rxf4 {[%clk
0:01:20.7]} 50. g5 {[%clk 0:00:03.7]} 50... hxg5 {[%clk 0:01:20.6]} 51. h4
{[%clk 0:00:03.5]} 51... Rxh4 {[%clk 0:01:21.5]} 52. Kg2 {[%clk 0:00:03.5]}
52... Ke4 {[%clk 0:01:21.2]} 53. Kg3 {[%clk 0:00:04.4]} 53... Kxe5 {[%clk
0:01:22.1]} 54. Kg2 {[%clk 0:00:04.6]} 54... Kf5 {[%clk 0:01:23]} 55. Kg3 {[%clk
0:00:05.5]} 55... e5 {[%clk 0:01:23.6]} 56. Kg2 {[%clk 0:00:06.4]} 56... Rf4
{[%clk 0:01:24]} 57. Kg3 {[%clk 0:00:07.3]} 57... e4 {[%clk 0:01:24.9]} 58. Kg2
{[%clk 0:00:08]} 58... e3 {[%clk 0:01:25.8]} 59. Kg3 {[%clk 0:00:08.9]} 59... e2
{[%clk 0:01:26.7]} 60. Kg2 {[%clk 0:00:09.7]} 60... e1=Q {[%clk 0:01:26.7]} 61.
Kh3 {[%clk 0:00:10.5]} 61... Qe3+ {[%clk 0:01:27.2]} 62. Kg2 {[%clk 0:00:11]}
62... Rf2+ {[%clk 0:01:28.1]} 0-1

[Event "Early-Titled-Tuesday-Blitz-May-28-2024"]
[Site "Chess.com"]
[Date "2024.05.28"]
[Round "2"]
[White "Witik"]
[Black "chrisclaireredfield"]
[Result "1-0"]
[WhiteElo "2783"]
[BlackElo "2553"]
[TimeControl "180+1"]
[EndTime "8:18:21 PDT"]
[Termination "Witik won by resignation"]

1. d4 {[%clk 0:02:59.7]} 1... d5 {[%clk 0:02:59.7]} 2. Nf3 {[%clk 0:02:59.6]}
2... Nf6 {[%clk 0:02:59.5]} 3. Bf4 {[%clk 0:02:59.6]} 3... e6 {[%clk 0:02:59.3]}
4. Nbd2 {[%clk 0:02:57.7]} 4... c5 {[%clk 0:02:58.9]} 5. e3 {[%clk 0:02:57.9]}
5... Nc6 {[%clk 0:02:58.7]} 6. c3 {[%clk 0:02:58]} 6... Bd6 {[%clk 0:02:58.6]}
7. Bg3 {[%clk 0:02:58.2]} 7... O-O {[%clk 0:02:58]} 8. Bd3 {[%clk 0:02:58.3]}
8... b6 {[%clk 0:02:57.6]} 9. Qe2 {[%clk 0:02:58.3]} 9... Bb7 {[%clk 0:02:55.2]}
10. Rd1 {[%clk 0:02:58.5]} 10... Re8 {[%clk 0:02:47.6]} 11. Ne5 {[%clk
0:02:40.5]} 11... Ne7 {[%clk 0:02:35.1]} 12. f4 {[%clk 0:02:17.4]} 12... Nf5
{[%clk 0:02:32.4]} 13. Bf2 {[%clk 0:02:15.6]} 13... Bf8 {[%clk 0:02:30.4]} 14.
O-O {[%clk 0:02:08.7]} 14... Nd6 {[%clk 0:02:29.7]} 15. Bh4 {[%clk 0:02:09.1]}
15... Be7 {[%clk 0:02:25.3]} 16. dxc5 {[%clk 0:01:48.5]} 16... bxc5 {[%clk
0:02:25]} 17. c4 {[%clk 0:01:49.2]} 17... Qb6 {[%clk 0:02:14.5]} 18. b3 {[%clk
0:01:36.9]} 18... Rad8 {[%clk 0:02:12.7]} 19. Ndf3 {[%clk 0:01:32.5]} 19... Nfe4
{[%clk 0:01:58.7]} 20. Bxe7 {[%clk 0:01:28.6]} 20... Rxe7 {[%clk 0:01:58.8]} 21.
Qe1 {[%clk 0:01:00.2]} 21... f6 {[%clk 0:01:58.2]} 22. Ng4 {[%clk 0:00:58.7]}
22... Red7 {[%clk 0:01:44]} 23. cxd5 {[%clk 0:00:54.1]} 23... exd5 {[%clk
0:01:43]} 24. Qh4 {[%clk 0:00:46.3]} 24... c4 {[%clk 0:01:31.7]} 25. Bxe4 {[%clk
0:00:42.9]} 25... Nxe4 {[%clk 0:01:14.8]} 26. Nd4 {[%clk 0:00:40.5]} 26... c3
{[%clk 0:01:09.9]} 27. Rf3 {[%clk 0:00:36.6]} 27... Ba6 {[%clk 0:00:49.5]} 28.
Rh3 {[%clk 0:00:35.9]} 28... g6 {[%clk 0:00:49.8]} 29. f5 {[%clk 0:00:32.5]}
29... g5 {[%clk 0:00:46.3]} 30. Qh6 {[%clk 0:00:27.6]} 30... Rc8 {[%clk
0:00:39.5]} 31. Rc1 {[%clk 0:00:21.5]} 31... Bd3 {[%clk 0:00:33.6]} 32. Ne6
{[%clk 0:00:19]} 32... Rf7 {[%clk 0:00:19.4]} 33. Qh5 {[%clk 0:00:19.2]} 33...
c2 {[%clk 0:00:16.9]} 34. Nh6+ {[%clk 0:00:19.4]} 1-0